fUST/lending_fUST_20240423
["ID","MTS","AMOUNT","RATE_DAILY","PERIOD"]
[323235401,1713821440422,-668.59,0.00046589,7]
[323235402,1713821440431,-1000.0,0.00046589,120]
[323235403,1713821440439,-1000.0,0.00046589,120]
[323235405,1713821440448,-1000.0,0.00046589,120]
[323235407,1713821440457,-1000.0,0.00046589,120]
[323235409,1713821440466,-1000.0,0.00046589,120]
[323235410,1713821440475,-1000.0,0.00046589,120]
[323235411,1713821440483,-813.02149799,0.00046589,120]
[323235412,1713821440492,-222860.34190266,0.0004659,7]
[323235413,1713821440505,-40955.70522305,0.0004659,7]
[323235414,1713821440517,-412.80292201,0.0004659,7]
[323235455,1713821443871,-332.38819351,0.00027396,20]
[323235456,1713821443881,-465.92917544,0.00034509,4]
[323235457,1713821443890,-1536.44315538,0.00035075,2]
[323235458,1713821443899,-596.27721715,0.00035614,4]
[323235459,1713821443908,-1093.19145828,0.00035615,4]
[323235460,1713821443920,-2686.65996793,0.00035615,4]
[323235461,1713821443931,-2595.3831564,0.00035615,4]
[323235462,1713821443941,-257.26224646,0.00037488,4]
[323235463,1713821443956,-5264.67527679,0.00037488,2]
[323235464,1713821443965,-29992.59,0.00041543,3]
[323235465,1713821443975,-417.0,0.00044393,2]
[323235466,1713821443984,-139423.96076778,0.0004659,7]
[323235536,1713822632171,-154.86062544,0.00023813,2]
[323235537,1713822632180,-241.47273892,0.00023813,2]
[323235538,1713822632190,-154.86062544,0.00023814,2]
[323235539,1713822632199,-808.31234139,0.00023814,2]
[323235540,1713822632208,-759.73220331,0.00023814,2]
[323235577,1713822637820,-689.33608369,0.00023812,2]
[323235579,1713822637829,-2587.27470458,0.00023813,2]
[323235581,1713822637839,-539.74228579,0.00023813,2]
[323235583,1713822637848,-469.51863427,0.00023813,2]
[323235585,1713822637859,-1339.32426124,0.00023814,2]
[323235587,1713822637870,-272.52388449,0.00023815,2]
[323235589,1713822637882,-5000.0,0.00023815,2]
[323235591,1713822637893,-354.73903456,0.00023815,2]
[323235593,1713822637903,-1675.48961184,0.00023815,2]
[323235595,1713822637912,-1056.82567173,0.00023816,2]
[323235597,1713822637923,-701.81456509,0.00023816,2]
[323235599,1713822637932,-329.57107256,0.00023816,2]
[323235601,1713822637941,-189.15723965,0.00023816,2]
[323235603,1713822637951,-161.99063186,0.00023816,2]
[323235605,1713822637961,-300.0,0.00023817,2]
[323235607,1713822637970,-603.23240406,0.00023817,2]
[323235609,1713822637980,-300.0,0.00023817,2]
[323235611,1713822637991,-59148.32683968,0.00023817,2]
[323235613,1713822638002,-154.86062544,0.00023818,2]
[323235615,1713822638012,-1577.66906822,0.00023818,2]
[323235617,1713822638022,-31291.27918784,0.00023818,2]
[323235619,1713822638032,-5800.54488045,0.00023819,2]
[323235621,1713822638041,-206.02600307,0.0002382,2]
[323235623,1713822638052,-564.79217368,0.00023823,2]
[323235625,1713822638062,-166.63771264,0.00023823,2]
[323235627,1713822638073,-304.67118931,0.00023824,2]
[323235629,1713822638082,-250.27074461,0.00023832,2]
[323235632,1713822638093,-570.0393842,0.00023843,2]
[323235634,1713822638102,-459.645754,0.00024659,2]
[323235635,1713822638112,-1620.16401568,0.00024659,2]
[323235637,1713822638121,-168.96769,0.00024665,2]
[323235639,1713822638131,-620.02489855,0.00025704,2]
[323235641,1713822638140,-420.0,0.00025833,2]
[323235644,1713822638149,-288.74543183,0.00026136,2]
[323235646,1713822638159,-245.63675668,0.00026137,2]
[323235648,1713822638168,-420.0,0.00026199,2]
[323235649,1713822638177,-620.00124493,0.0002699,2]
[323235651,1713822638187,-332.38819351,0.00027,20]
[323235654,1713822638196,-190.53974381,0.00027,2]
[323235655,1713822638206,-155.9266058,0.00027069,2]
[323235658,1713822638215,-249.508386,0.00027397,2]
[323235660,1713822638224,-1000.0,0.00027397,2]
[323235661,1713822638233,-166.666666,0.00027397,2]
[323235663,1713822638245,-157.413437,0.00027397,2]
[323235666,1713822638254,-171.756466,0.00027461,2]
[323235668,1713822638264,-801.79803207,0.000275,17]
[323235669,1713822638273,-220.76868482,0.00028,2]
[323235671,1713822638282,-327.0,0.0002802,2]
[323235673,1713822638292,-166.666666,0.00028038,2]
[323235674,1713822638301,-154.255768,0.00028566,2]
[323235675,1713822638310,-166.666666,0.00028679,2]
[323235676,1713822638320,-587.0,0.00028819,2]
[323235677,1713822638330,-166.666666,0.00029321,2]
[323235678,1713822638342,-182.96331992,0.00029706,2]
[323235679,1713822638352,-206.11179721,0.00029808,2]
[323235680,1713822638360,-206.11179721,0.00029808,2]
[323235681,1713822638374,-206.11179721,0.00029808,2]
[323235682,1713822638386,-206.11179721,0.00029808,2]
[323235683,1713822638398,-206.11179721,0.00029808,2]
[323235684,1713822638410,-206.11179721,0.00029808,2]
[323235685,1713822638422,-166.666666,0.00029962,2]
[323235686,1713822638433,-154.86062544,0.0003,4]
[323235687,1713822638444,-154.86062544,0.0003,4]
[323235688,1713822638454,-320.898431,0.0003,30]
[323235689,1713822638465,-166.666666,0.0003,2]
[323235690,1713822638477,-253.99433855,0.0003,4]
[323235691,1713822638488,-154.86062544,0.0003,4]
[323235692,1713822638499,-232.0,0.0003,2]
[323235693,1713822638510,-508.07,0.00030136,2]
[323235694,1713822638521,-176.361824,0.00030137,2]
[323235695,1713822638532,-176.361824,0.00030137,21]
[323235696,1713822638543,-176.361824,0.00030137,41]
[323235697,1713822638554,-176.361824,0.00030137,61]
[323235698,1713822638566,-176.361824,0.00030137,80]
[323235699,1713822638577,-176.361824,0.00030137,100]
[323235700,1713822638588,-176.361824,0.00030137,120]
[323235701,1713822638599,-508.07,0.00030191,2]
[323235702,1713822638609,-508.07,0.00030246,2]
[323235703,1713822638619,-508.07,0.00030301,2]
[323235704,1713822638631,-508.07,0.00030356,2]
[323235705,1713822638642,-508.07,0.0003041,2]
[323235706,1713822638652,-508.07,0.00030465,2]
[323235707,1713822638662,-508.07,0.0003052,2]
[323235708,1713822638674,-508.07,0.00030575,2]
[323235709,1713822638685,-166.666666,0.00030603,2]
[323235710,1713822638695,-508.07,0.0003063,2]
[323235711,1713822638706,-508.07,0.00030684,2]
[323235712,1713822638718,-508.07,0.00030739,2]
[323235713,1713822638730,-508.07,0.00030794,2]
[323235714,1713822638741,-508.07,0.00030849,2]
[323235715,1713822638753,-508.07,0.00030904,2]
[323235716,1713822638762,-508.07,0.00030958,2]
[323235717,1713822638773,-508.07,0.00031013,2]
[323235718,1713822638783,-152.24651575,0.00031014,7]
[323235719,1713822638795,-508.07,0.00031068,2]
[323235720,1713822638807,-508.07,0.00031123,2]
[323235721,1713822638818,-508.07,0.00031178,2]
[323235722,1713822638828,-823.0,0.000317,2]
[323235723,1713822638841,-191.40398273,0.00032,4]
[323235724,1713822638851,-155.9266058,0.00032042,7]
[323235725,1713822638862,-31825.47,0.00032099,3]
[323235726,1713822638874,-380.14008131,0.00032109,2]
[323235727,1713822638885,-500.0,0.00032109,2]
[323235728,1713822638896,-500.0,0.00032109,2]
[323235729,1713822638908,-500.0,0.00032109,2]
[323235730,1713822638920,-500.0,0.00032109,2]
[323235731,1713822638930,-500.0,0.00032109,2]
[323235732,1713822638942,-500.0,0.00032109,2]
[323235733,1713822638953,-500.0,0.00032109,2]
[323235734,1713822638966,-500.0,0.00032109,2]
[323235735,1713822638977,-500.0,0.00032109,2]
[323235736,1713822638989,-500.0,0.00032109,2]
[323235737,1713822639001,-500.0,0.00032109,2]
[323235738,1713822639014,-500.0,0.00032109,2]
[323235739,1713822639025,-500.0,0.00032109,2]
[323235740,1713822639037,-500.0,0.00032109,2]
[323235741,1713822639049,-500.0,0.00032109,2]
[323235742,1713822639060,-426.99867832,0.00032109,2]
[323235743,1713822639070,-38190.57,0.0003211,3]
[323235744,1713822639082,-155.08393189,0.00032117,4]
[323235745,1713822639093,-484.36740101,0.00032117,4]
[323235746,1713822639103,-159.59769079,0.00032117,4]
[323235747,1713822639113,-520.79166941,0.00032117,4]
[323235748,1713822639126,-3289.48960886,0.0003212,4]
[323235749,1713822639137,-155.9266058,0.00032287,7]
[323235750,1713822639148,-155.9266058,0.00032559,7]
[323235751,1713822639159,-249.508386,0.00033165,2]
[323235752,1713822639171,-157.413437,0.00033486,2]
[323235753,1713822639184,-465.92917544,0.00034,4]
[323235754,1713822639195,-1152.0,0.0003487,2]
[323235755,1713822639206,-19408.82803415,0.00034889,2]
[323235756,1713822639216,-693.01732366,0.00034988,4]
[323235757,1713822639227,-5456.52078879,0.00034998,4]
[323235758,1713822639238,-4089.23,0.00034999,2]
[323235759,1713822639248,-4089.23,0.00034999,2]
[323235760,1713822639258,-4089.23,0.00034999,2]
[323235761,1713822639268,-4089.23,0.00034999,2]
[323235762,1713822639278,-4089.23,0.00034999,2]
[323235763,1713822639288,-59870.49651139,0.00035,2]
[323235764,1713822639298,-5312.69548551,0.00035,4]
[323235765,1713822639308,-6882.79997042,0.00035,4]
[323235766,1713822639318,-214.38520539,0.00035,4]
[323235767,1713822639329,-597.50567154,0.00035,2]
[323235768,1713822639340,-12749.46392609,0.00035,4]
[323235769,1713822639351,-210316.70887647,0.00035,30]
[323235771,1713822639362,-4141.140404,0.00035616,120]
[323235773,1713822639372,-154.86062544,0.0003589,2]
[323235774,1713822639383,-150.0,0.00036389,2]
[323235775,1713822639394,-150.0,0.0003639,2]
[323235776,1713822639403,-150.0,0.00036605,2]
[323235777,1713822639415,-155.9266058,0.00036661,7]
[323235778,1713822639426,-2924.81959822,0.00037,2]
[323235779,1713822639438,-150.0,0.00037389,2]
[323235780,1713822639449,-150.0,0.0003739,2]
[323235781,1713822639459,-3000.0,0.000375,32]
[323235783,1713822639469,-3000.0,0.0003751,32]
[323235784,1713822639480,-3000.0,0.0003752,32]
[323235785,1713822639492,-3000.0,0.0003753,32]
[323235786,1713822639503,-3000.0,0.0003754,32]
[323235787,1713822639513,-3000.0,0.0003755,32]
[323235788,1713822639525,-3000.0,0.0003756,32]
[323235789,1713822639535,-3000.0,0.0003757,32]
[323235790,1713822639545,-3000.0,0.0003758,32]
[323235791,1713822639555,-4662.321782,0.0003759,32]
[323235792,1713822639568,-163.07982952,0.00037648,7]
[323235793,1713822639579,-155.9266058,0.00038212,7]
[323235794,1713822639590,-1613.0,0.00038358,3]
[323235795,1713822639600,-150.0,0.0003839,2]
[323235796,1713822639611,-249.508386,0.00038933,2]
[323235797,1713822639623,-163.07982952,0.0003951,7]
[323235798,1713822639633,-157.413437,0.00039574,2]
[323235799,1713822639643,-243.72205112,0.00039665,30]
[323235800,1713822639654,-8398.18767109,0.00039665,4]
[323235801,1713822639664,-1492.7918435,0.0004,7]
[323235802,1713822639674,-4157.08582374,0.0004,30]
[323235803,1713822639684,-155.92660581,0.0004019,30]
[323235804,1713822639695,-188.87781556,0.00041,2]
[323235805,1713822639706,-1000.0,0.00041095,2]
[323235806,1713822639716,-1000.0,0.00041095,2]
[323235807,1713822639726,-1000.0,0.00041095,2]
[323235808,1713822639736,-177.8760005,0.00041096,2]
[323235809,1713822639746,-152.24651575,0.00041203,30]
[323235810,1713822639756,-1000.0,0.00041552,120]
[323235811,1713822639767,-4141.140404,0.00041553,120]
[323235812,1713822639777,-44444.0,0.00041831,5]
[323235813,1713822639787,-1208.93345524,0.00041919,4]
[323235814,1713822639798,-207.49027551,0.00041919,4]
[323235816,1713822639945,-1546.68780373,0.00041931,4]
[323235818,1713822639960,-2258.0,0.00042193,3]
[323235819,1713822639971,-5604.63909744,0.00043,30]
[323235820,1713822639980,-150.84915085,0.00043018,2]
[323235821,1713822639990,-154.07814833,0.00043567,30]
[323235822,1713822640000,-301.6983017,0.00043741,4]
[323235823,1713822640009,-24726.8688782,0.00043836,2]
[323235824,1713822640020,-1000.0,0.00043999,120]
[323235825,1713822640029,-1000.0,0.00043999,120]
[323235826,1713822640040,-925.5318754,0.00044258,4]
[323235827,1713822640052,-417.0,0.00044485,2]
[323235828,1713822640061,-224.95377348,0.0004449,2]
[323235829,1713822640069,-152.24651576,0.00044503,30]
[323235830,1713822640078,-249.508386,0.00044701,2]
[323235831,1713822640090,-157.413437,0.00045662,2]
[323235832,1713822640100,-153.0,0.00045781,2]
[323235833,1713822640109,-406.901779,0.00045781,2]
[323235834,1713822640118,-153.0,0.00045781,2]
[323235835,1713822640129,-153.0,0.00045781,2]
[323235836,1713822640139,-153.0,0.00045781,2]
[323235837,1713822640149,-154.86062544,0.000459,4]
[323235838,1713822640159,-587.0,0.000459,30]
[323235839,1713822640168,-1256.0,0.00046,30]
[323235840,1713822640178,-306.0,0.00046055,2]
[323235841,1713822640187,-202.23482485,0.00046066,2]
[323235842,1713822640197,-555.8670985,0.00046109,4]
[323235843,1713822640206,-451.53589281,0.00046111,4]
[323235844,1713822640216,-669.69256972,0.00046111,4]
[323235845,1713822640227,-154.92789872,0.00046112,3]
[323235846,1713822640238,-154.86062544,0.00046124,4]
[323235847,1713822640247,-163.07982952,0.00046242,30]
[323235848,1713822640256,-1307.8434245,0.00046357,15]
[323235849,1713822640266,-1332.001332,0.00046357,15]
[323235850,1713822640276,-504.54595909,0.00046357,6]
[323235851,1713822640285,-4501.93111812,0.0004639,30]
[323235852,1713822640296,-3162.0,0.00046413,3]
[323235853,1713822640307,-1068.69629863,0.00046487,31]
[323235854,1713822640316,-1000.0,0.00046488,120]
[323235855,1713822640327,-1000.0,0.00046489,120]
[323235856,1713822640338,-150.0,0.00046489,60]
[323235857,1713822640348,-1000.0,0.000465,23]
[323235858,1713822640357,-161.0,0.0004656,35]
[323235859,1713822640367,-161.0,0.0004657,35]
[323235860,1713822640377,-180.13273192,0.00046578,4]
[323235861,1713822640386,-548.26955098,0.00046578,4]
[323235862,1713822640395,-277.24658734,0.00046578,4]
[323235863,1713822640404,-282.52694059,0.00046578,4]
[323235864,1713822640415,-361.05831142,0.00046578,4]
[323235865,1713822640424,-473.53133438,0.00046578,4]
[323235866,1713822640433,-471.46116533,0.00046579,4]
[323235867,1713822640443,-154.92253873,0.00046579,4]
[323235868,1713822640453,-156.84586358,0.00046579,4]
[323235869,1713822640461,-161.0,0.0004658,35]
[323235870,1713822640472,-408.57291394,0.00046587,4]
[323235871,1713822640482,-154.87214684,0.00046587,2]
[323235872,1713822640491,-154.95351395,0.00046587,4]
[323235873,1713822640500,-813.02149799,0.00046587,120]
[323235874,1713822640511,-977.24197565,0.00046589,4]
[323235875,1713822640520,-151.0,0.00046589,7]
[323235876,1713822640529,-151.0,0.00046589,7]
[323235877,1713822640538,-151.0,0.00046589,7]
[323235878,1713822640547,-151.0,0.00046589,7]
[323235879,1713822640557,-151.0,0.00046589,7]
[323235880,1713822640567,-428351.45380088,0.0004659,7]
[323235881,1713822640658,-142691.78787138,0.0004659,7]
[323235909,1713822642920,-731.43469222,0.0004659,7]
[323235953,1713823380556,170.79474,0.00021981,2]
[323235954,1713823445831,16087.28363851,0.00021981,2]
[323235955,1713823447729,1000.0,0.00021981,2]
[323235958,1713823461831,14233.49006608,0.00021981,2]
[323235960,1713823463696,1000.0,0.00021981,2]
[323235962,1713823476337,154.86062544,0.00021981,2]
[323235966,1713823479772,1000.0,0.00021981,2]
[323235970,1713823493893,154.86062544,0.00021981,2]
[323235971,1713823504207,200.0,0.00021981,2]
[323235972,1713823505713,1000.0,0.00021981,2]
[323235973,1713823507545,180.28293001,0.00021981,2]
[323235974,1713823511900,154.86062544,0.00021981,2]
[323235975,1713823518159,200.0,0.00021981,2]
[323235977,1713823525501,295.32216086,0.00021981,2]
[323235978,1713823525690,1000.0,0.00021981,2]
[323235979,1713823527893,282.93123499,0.00021981,2]
[323235981,1713823542165,200.0,0.00021981,2]
[323235982,1713823543692,1000.0,0.00021981,2]
[323235984,1713823559693,1000.0,0.00021981,2]
[323235985,1713823560176,200.0,0.00021981,2]
[323235986,1713823567083,1098.68723434,0.00019881,2]
[323235987,1713823578219,225.415165,0.00021856,2]
[323235988,1713823579694,1000.0,0.00021981,2]
[323235989,1713823580174,200.0,0.00021981,2]
[323235990,1713823596216,1000.0,0.00021981,2]
[323235992,1713823615699,1000.0,0.00021981,2]
[323235993,1713823633706,1000.0,0.00021981,2]
[323235994,1713823657707,1000.0,0.00021981,2]
[323235995,1713823683712,1000.0,0.00021981,2]
[323235997,1713823701715,1000.0,0.00021981,2]
[323235998,1713823719601,221.0793081,0.00021838,2]
[323235999,1713823721714,1000.0,0.00021981,2]
[323236000,1713823737716,740.13164579,0.00021981,2]
[323236055,1713823831933,-2035.03861485,0.00021968,2]
[323236057,1713823831945,-1834.54695498,0.00021968,2]
[323236059,1713823831956,-1130.41443017,0.00021968,2]
[323236061,1713823831965,-519.85393498,0.00021968,2]
[323236063,1713823831974,-206.02600307,0.00021969,2]
[323236065,1713823831983,-596.73090927,0.00021969,2]
[323236068,1713823831992,-1577.66906822,0.00021969,2]
[323236070,1713823832001,-469.51863427,0.00021969,2]
[323236073,1713823832010,-154.86062544,0.00021969,2]
[323236076,1713823832019,-277.93550668,0.0002197,2]
[323236079,1713823832029,-2452.2553478,0.0002197,2]
[323236082,1713823832038,-161.99063186,0.0002197,2]
[323236083,1713823832047,-1056.82567173,0.0002197,2]
[323236085,1713823832057,-701.81456509,0.00021971,2]
[323236087,1713823832066,-1015.1704071,0.00021971,2]
[323236136,1713823837937,-272.52388449,0.00021967,2]
[323236138,1713823837946,-319.6542586,0.00021967,2]
[323236140,1713823837955,-154.86062544,0.00021967,2]
[323236142,1713823837965,-689.33608369,0.00021967,2]
[323236144,1713823837975,-58133.15643258,0.00021971,2]
[323236146,1713823837984,-2587.27470458,0.00021972,2]
[323236148,1713823837992,-677.92303889,0.00021972,2]
[323236150,1713823838002,-17381.59812264,0.00021972,2]
[323236152,1713823838012,-883.60999796,0.00021973,2]
[323236154,1713823838022,-539.74228579,0.00021973,2]
[323236156,1713823838033,-603.23240406,0.00021973,2]
[323236158,1713823838042,-189.15723965,0.00021973,2]
[323236160,1713823838053,-1675.48961184,0.00021973,2]
[323236162,1713823838063,-300.0,0.00021973,2]
[323236164,1713823838072,-300.0,0.00021973,2]
[323236166,1713823838082,-312.60299253,0.00021974,2]
[323236168,1713823838092,-977.60937861,0.00021974,2]
[323236170,1713823838102,-2099.05646455,0.00021974,2]
[323236172,1713823838113,-329.57107256,0.00021975,2]
[323236174,1713823838124,-474.69572621,0.00021975,2]
[323236176,1713823838133,-354.73903456,0.00021975,2]
[323236178,1713823838142,-31291.27918784,0.00021975,2]
[323236180,1713823838153,-5800.54488045,0.00021976,2]
[323236182,1713823838162,-5458.5886175,0.00021976,2]
[323236184,1713823838171,-259.86835421,0.00021981,2]
[323236186,1713823838181,-182.96331992,0.00022883,2]
[323236188,1713823838191,-276.16517788,0.00023,2]
[323236190,1713823838201,-717.58481357,0.00023122,2]
[323236192,1713823838210,-420.0,0.00023878,2]
[323236194,1713823838218,-380.14008131,0.00023955,2]
[323236196,1713823838227,-250.0,0.00023956,2]
[323236198,1713823838236,-420.0,0.0002417,2]
[323236200,1713823838245,-624.87924068,0.00024278,2]
[323236202,1713823838254,-913.46660719,0.000245,2]
[323236204,1713823838264,-269.147374,0.00024658,2]
[323236206,1713823838273,-1098.68723434,0.00024881,2]
[323236208,1713823838283,-157.23828164,0.00025,2]
[323236210,1713823838294,-620.24396203,0.00025492,2]
[323236212,1713823838303,-163.07982952,0.0002575,2]
[323236214,1713823838313,-587.0,0.00025948,2]
[323236216,1713823838323,-692.61042729,0.00026,2]
[323236218,1713823838333,-925.5318754,0.00026247,2]
[323236219,1713823838342,-5600.0,0.000265,9]
[323236221,1713823838351,-587.0,0.00026587,2]
[323236223,1713823838361,-620.0121981,0.00026766,2]
[323236225,1713823838370,-155.9266058,0.00026928,2]
[323236227,1713823838381,-154.86062544,0.00027,2]
[323236229,1713823838391,-8515.70774373,0.00027,2]
[323236231,1713823838400,-332.38819351,0.00027,20]
[323236233,1713823838409,-155.9266058,0.00027099,2]
[323236235,1713823838418,-3248.49317546,0.00027295,2]
[323236237,1713823838427,-3248.4931754,0.00027327,2]
[323236239,1713823838436,-3248.4931754,0.00027359,2]
[323236241,1713823838445,-3248.4931754,0.0002739,2]
[323236243,1713823838454,-500.0,0.00027397,2]
[323236245,1713823838463,-500.0,0.00027397,2]
[323236247,1713823838472,-500.0,0.00027397,2]
[323236249,1713823838482,-500.0,0.00027397,2]
[323236251,1713823838491,-500.0,0.00027397,2]
[323236253,1713823838501,-500.0,0.00027397,2]
[323236255,1713823838511,-500.0,0.00027397,2]
[323236257,1713823838520,-500.0,0.00027397,2]
[323236259,1713823838529,-500.0,0.00027397,2]
[323236261,1713823838538,-500.0,0.00027397,2]
[323236263,1713823838547,-500.0,0.00027397,2]
[323236265,1713823838556,-500.0,0.00027397,2]
[323236267,1713823838567,-500.0,0.00027397,2]
[323236269,1713823838576,-500.0,0.00027397,2]
[323236271,1713823838584,-500.0,0.00027397,2]
[323236273,1713823838594,-426.99867832,0.00027397,2]
[323236275,1713823838603,-162.768729,0.00027397,2]
[323236277,1713823838613,-1000.0,0.00027397,2]
[323236279,1713823838622,-9193.643966,0.00027397,2]
[323236281,1713823838633,-157.942304,0.00027397,2]
[323236283,1713823838642,-166.666666,0.00027397,2]
[323236285,1713823838651,-3248.4931754,0.00027422,2]
[323236287,1713823838660,-3248.4931754,0.00027454,2]
[323236289,1713823838668,-3248.4931754,0.00027486,2]
[323236291,1713823838677,-5069.18649035,0.000275,2]
[323236293,1713823838686,-3248.4931754,0.00027517,2]
[323236295,1713823838695,-19408.82803415,0.0002753,2]
[323236297,1713823838705,-3248.4931754,0.00027549,2]
[323236299,1713823838716,-3248.4931754,0.00027581,2]
[323236301,1713823838725,-245.63675668,0.00027599,2]
[323236317,1713823838860,-166.63771264,0.00027608,2]
[323236320,1713823838871,-304.67118931,0.00027608,2]
[323236321,1713823838881,-623.42407479,0.00027609,2]
[323236323,1713823838890,-250.27074461,0.00027617,2]
[323236325,1713823838899,-155.08393189,0.00027618,2]
[323236327,1713823838908,-520.79166941,0.00027618,2]
[323236329,1713823838917,-159.59769079,0.00027619,2]
[323236331,1713823838925,-459.645754,0.00027628,2]
[323236333,1713823838934,-1620.16401568,0.00027628,2]
[323236335,1713823838944,-564.79217368,0.00027628,2]
[323236336,1713823838953,-180.13273192,0.00027628,2]
[323236337,1713823838962,-207.49027551,0.00027629,2]
[323236338,1713823838971,-59870.49651139,0.0002763,2]
[323236339,1713823838980,-162254.37157847,0.0002763,2]
[323236340,1713823838990,-200.87348119,0.000279,2]
[323236341,1713823838999,-423.74027797,0.00028,2]
[323236342,1713823839008,-99999.999999,0.00028,4]
[323236343,1713823839017,-500.0,0.00028,7]
[323236344,1713823839026,-166.666666,0.00028038,2]
[323236345,1713823839035,-620.00060991,0.00028105,2]
[323236346,1713823839044,-760.0,0.00028198,2]
[323236347,1713823839053,-150.0,0.00028242,2]
[323236348,1713823839063,-163.07982952,0.0002827,2]
[323236349,1713823839072,-44444.0,0.0002867,3]
[323236350,1713823839082,-166.666666,0.00028679,2]
[323236351,1713823839092,-188354.55086785,0.0002877,2]
[323236352,1713823839101,-842.99041656,0.00029,2]
[323236353,1713823839111,-566.89793852,0.00029203,30]
[323236354,1713823839121,-1262.98562613,0.00029203,120]
[323236355,1713823839133,-593.7984422,0.00029203,120]
[323236356,1713823839143,-1157.75228905,0.00029203,30]
[323236357,1713823839153,-968.96751337,0.00029203,120]
[323236358,1713823839162,-30098.03,0.00029203,30]
[323236359,1713823839171,-510.40333319,0.00029203,30]
[323236360,1713823839180,-154.8915749,0.00029203,120]
[323236361,1713823839189,-2914.90763558,0.00029203,30]
[323236362,1713823839198,-150.0,0.00029242,2]
[323236363,1713823839207,-823.0,0.00029246,2]
[323236364,1713823839216,-166.666666,0.00029321,2]
[323236365,1713823839225,-620.0000305,0.0002951,2]
[323236366,1713823839234,-206.11179721,0.00029808,2]
[323236367,1713823839242,-206.11179721,0.00029808,2]
[323236368,1713823839251,-206.11179721,0.00029808,2]
[323236369,1713823839260,-206.11179721,0.00029808,2]
[323236370,1713823839269,-206.11179721,0.00029808,2]
[323236371,1713823839278,-206.11179721,0.00029808,2]
[323236372,1713823839288,-155.9266058,0.00029812,2]
[323236374,1713823839296,-1098.68723434,0.00029881,2]
[323236375,1713823839305,-166.666666,0.00029962,2]
[323236377,1713823839316,-17669.8293836,0.00029987,2]
[323236379,1713823839324,-154.86062544,0.0003,4]
[323236380,1713823839333,-154.86062544,0.0003,30]
[323236382,1713823839342,-320.898431,0.0003,30]
[323236383,1713823839351,-154.86062544,0.0003,4]
[323236384,1713823839360,-3641.75095553,0.0003,2]
[323236385,1713823839370,-1281.53380601,0.0003,5]
[323236387,1713823839382,-43652.84933711,0.0003,7]
[323236388,1713823839391,-200.13974053,0.0003,30]
[323236390,1713823839400,-2659.0,0.0003,2]
[323236392,1713823839409,-10099.86286983,0.0003,2]
[323236393,1713823839418,-154.86062544,0.0003,4]
[323236396,1713823839427,-6603.6992062,0.0003,37]
[323236399,1713823839437,-166.666666,0.0003,2]
[323236401,1713823839445,-268.0,0.0003,2]
[323236404,1713823839455,-253.99433855,0.0003,4]
[323236407,1713823839464,-508.07,0.00030136,2]
[323236408,1713823839473,-176.361824,0.00030137,2]
[323236410,1713823839482,-176.361824,0.00030137,21]
[323236412,1713823839492,-176.361824,0.00030137,41]
[323236413,1713823839501,-176.361824,0.00030137,61]
[323236414,1713823839510,-176.361824,0.00030137,80]
[323236415,1713823839520,-176.361824,0.00030137,100]
[323236416,1713823839529,-176.361824,0.00030137,120]
[323236417,1713823839538,-508.07,0.00030191,2]
[323236418,1713823839547,-150.0,0.00030242,2]
[323236419,1713823839556,-508.07,0.00030246,2]
[323236420,1713823839564,-508.07,0.00030301,2]
[323236421,1713823839573,-508.07,0.00030356,2]
[323236422,1713823839582,-508.07,0.0003041,2]
[323236424,1713823839592,-508.07,0.00030465,2]
[323236425,1713823839601,-508.07,0.0003052,2]
[323236426,1713823839610,-508.07,0.00030575,2]
[323236427,1713823839619,-166.666666,0.00030603,2]
[323236428,1713823839629,-152.24651574,0.00030624,7]
[323236429,1713823839638,-508.07,0.0003063,2]
[323236430,1713823839647,-508.07,0.00030684,2]
[323236431,1713823839656,-508.07,0.00030739,2]